Cogmind - Beta 13 @@@ ROGUE MODE // 2024.04.04 @ 16:57:07 Player: _An Result: Destroyed by C-17 Slicer with Blade Saw Performance ------------- Evolutions (3) 1500 Regions Visited (7) 1400 Robots Destroyed (64) 320 Value Destroyed (2692) 2692 Prototype IDs (5) 100 Alien Tech Used (0) 0 Bonus (915) 915 TOTAL SCORE: 6927 Bonus ------- High Alert Combat Kills 401 Follower Combat Kills 14 Entered Garrisons 200 Aligned with FarCom 300 Cogmind --------- Core Integrity 0/700 Matter 215/300 Energy 65/100 System Corruption 9% Temperature Cool (0) Movement Hovering (60) Location -7/Garrison Parts ------- > --- POWER (1) -------- (None) > --- PROPULSION (4) --- Gravmag System > --- UTILITY (6) ------ Improved Heat Sink Advanced Melee Analysis Suite > --- WEAPON (2) ------- (None) > --- INVENTORY (5) ---- Medium Storage Unit Hacking Suite System Shield Peak State ------------ > --- POWER ------------ Improved Deuterium Engine > --- PROPULSION ------- Flying Fortress v7 > --- UTILITY ---------- Improved Heat Sink Medium Storage Unit Improved Signal Interpreter Reaction Control System Improved Propulsion Shielding Hardened Light Armor Plating > --- WEAPON ----------- Greatsword > --- INVENTORY -------- Light Deuterium Engine Improved Flight Unit Medium Matter Pod Reaction Control System Improved Medium Armor Plating System Shield EM Pulse Cannon Improved EM Pulse Cannon Advanced Assault Cannon EMP Blaster [Rating: 62] Favorites ----------- Power Light Nuclear Core Engine Improved Deuterium Engine Power Core Light Nuclear Core Propulsion Flying Fortress v7 Treads Light Treads Leg Aluminum Leg Wheel Compact Wheel Hover Unit Hover Unit Flight Unit Flying Fortress v7 Utility Improved Signal Interpreter Device Reaction Control System Storage Medium Storage Unit Processor Improved Signal Interpreter Protection Hardened Light Armor Plating Weapon Greatsword Energy Gun Beam Rifle Energy Cannon Improved EM Pulse Cannon Ballistic Gun Light Assault Rifle Ballistic Cannon Advanced Assault Cannon Launcher EMP Blaster Slashing Weapon Greatsword Build | -11 -10 -10 -10 -9 -8 -7 -7 ------- Run | Yrd Mat Min Exi Min Mat Fac Gar Slots Evolved 6 | . . . . . 4 2 . Power . | . . . . . . . . Propulsion 2 | . . . . . 2 . . Utility 4 | . . . . . 2 2 . Weapon . | . . . . . . . . Parts Attached 87 | 7 6 3 4 1 4 18 44 Power 6 | 1 . 1 . . . 2 2 Engine 3 | 1 . . . . . 2 . Core 3 | . . 1 . . . . 2 Reactor . | . . . . . . . . Propulsion 19 | 2 2 2 . . 1 . 12 Treads 2 | . . . . . . . 2 Leg 1 | . . . . . . . 1 Wheel 2 | 2 . . . . . . . Hover 9 | . . 2 . . . . 7 Flight 5 | . 2 . . . 1 . 2 Utility 23 | 2 . . 2 . 1 6 12 Device 7 | 1 . . 1 . . 2 3 Storage 4 | 1 . . 1 . . 2 . Processor 5 | . . . . . 1 . 4 Hackware . | . . . . . . . . Protection 7 | . . . . . . 2 5 Artifact . | . . . . . . . . Weapon 39 | 2 4 . 2 1 2 10 18 Energy Gun 3 | . 2 . . . . . 1 Energy Cannon 10 | . . . 1 . . 5 4 Ballistic Gun 5 | 2 2 . 1 . . . . Ballistic Cannon 8 | . . . . 1 1 2 4 Launcher 8 | . . . . . 1 1 6 Special Weapon . | . . . . . . . . Impact Weapon . | . . . . . . . . Slashing Weapon 5 | . . . . . . 2 3 Piercing Weapon . | . . . . . . . . Special Melee Weapon . | . . . . . . . . Unidentified Prototypes 5 | . . . 2 . 1 1 1 Parts Lost 32 | . 3 . . . 3 . 26 Power 5 | . 1 . . . 1 . 3 Propulsion 9 | . 2 . . . . . 7 Utility 12 | . . . . . . . 12 Weapon 6 | . . . . . 2 . 4 Highest Loss Streak 13 | . 3 . . . 3 . 13 To Critical Strikes . | . . . . . . . . Average Slot Usage (%) 67 | . 90 74 75 73 43 67 64 Engine 3 | . 10 . . . . 6 2 Core 3 | . . 4 14 14 5 . 2 Treads 1 | . . . . . . . 3 Leg 1 | . . . . . . . 2 Wheel 1 | . 20 . . . . . . Hover 4 | . . 25 28 28 . . 1 Flight 4 | . 2 1 . . 9 7 2 Device 6 | . 14 14 4 . . 11 3 Storage 10 | . 14 14 14 14 9 13 5 Processor 6 | . . . . . 8 7 9 Protection 10 | . . . . . . 7 18 Energy Cannon 3 | . . . . . . 7 3 Ballistic Gun 3 | . 12 14 14 14 5 . . Ballistic Cannon 1 | . . . . 2 4 . 1 Slashing Weapon 2 | . . . . . . 2 3 Naked Turns . | . . . . . . . . Heaviest Build 53 | 14 17 12 15 20 20 46 53 Greatest Support 50 | 26 26 12 12 12 50 50 50 Greatest Overweight (x) 15 | . 2 . 1 1 . . 15 Average Overweight (x) . | . . . . . . . . Largest Inventory Capacity 10 | 8 8 8 8 8 8 10 10 Average Capacity 9 | 7 8 8 8 8 8 9 9 Most Carried 10 | . 8 8 8 8 8 10 10 Average Carried 7 | . 2 7 7 7 6 8 8 Final Capacity 10 | 8 8 8 8 8 8 10 5 Final Carried 10 | . 8 8 8 8 7 10 3 Class Distribution -------------------- 86% | Mutant 12% | Scavenger-Mutant Dominant Class ---------------- Mutant | -10/Materials Mutant | -10/Mines Mutant | -10/Exiles Mutant | -9/Mines Mutant | -8/Materials Mutant | -7/Factory Mutant | -7/Garrison Resources | -11 -10 -10 -10 -9 -8 -7 -7 ----------- Run | Yrd Mat Min Exi Min Mat Fac Gar Matter Collected 1664 | 268 167 34 . 63 43 407 682 Remotely . | . . . . . . . . Salvage Created 2103 | 154 196 12 . 20 51 640 1030 Parts 131 | 15 21 1 . 4 5 36 49 Haulers Intercepted 2 | . . . . . . 2 . Recyclers Shooed . | . . . . . . . . Parts Field Recycled . | . . . . . . . . Retrieved Matter . | . . . . . . . . Parts Self-Destructed . | . . . . . . . . Prevented . | . . . . . . . . Kills | -11 -10 -10 -10 -9 -8 -7 -7 ------- Run | Yrd Mat Min Exi Min Mat Fac Gar Combat Hostiles Destroyed 43 | . 5 1 . 2 2 6 27 Melee 11 | . . . . . . 1 10 Guns 6 | . 5 1 . . . . . Cannons 14 | . . . . 2 . 1 11 AOE 8 | . . . . . 2 . 6 Classes Destroyed 14 | 2 5 . . . 1 3 3 Worker 4 | . 1 . . . . 3 . Builder 1 | . 1 . . . . . . Tunneler 6 | 5 . . . . . 1 . Hauler 2 | . . . . . . 2 . Recycler 1 | 1 . . . . . . . Operator 3 | . . . . . 1 2 . Watcher 4 | . 2 . . . . 2 . Swarmer 13 | . 3 1 . 2 2 . 5 Cutter 1 | . . . . . . . 1 Grunt 18 | . 2 . . . . 4 12 Brawler 1 | . . . . . . . 1 Duelist 1 | . . . . . . . 1 Sentry 6 | . . . . . . 1 5 Programmer 3 | . . . . . . 1 2 Best Kill Streak 7 | 5 7 1 . 2 2 3 5 Combat Bots Only 5 | . 5 1 . 2 2 3 5 Max Kills in Single Turn 2 | 1 2 1 . 1 2 2 1 Gunslinging . | . . . . . . . . Exploded 2 | . . . . . 2 . 1 Melee 1 | . . . . . . 1 1 Uniques/NPCs Destroyed . | . . . . . . . . Combat | -11 -10 -10 -10 -9 -8 -7 -7 -------- Run | Yrd Mat Min Exi Min Mat Fac Gar Hostile Shots Fired 843 | . 93 3 . 15 150 41 541 Missed 381 | . 30 2 . 5 75 19 250 Damage Taken 5473 | 7 600 8 . 82 821 296 3659 Core 1059 | . 201 8 . 7 142 49 652 Absorbed by Shields 90 | . . . . . . . 90 Redirected to Shielding 103 | . . . . . . . 103 Core Remaining (%) 62 | 100 . . . 13 74 . . Volleys Fired 186 | 17 30 4 . 6 17 43 69 Largest 2 | 2 2 1 . 2 2 2 2 Hottest 132 | 40 112 20 . 77 77 132 132 Shots Fired 273 | 34 57 4 . 12 25 58 83 Gun 111 | 34 57 4 . 6 9 . 1 Cannon 128 | . . . . 6 13 45 64 Launcher 34 | . . . . . 3 13 18 Special . | . . . . . . . . Kinetic 147 | 34 27 4 . 12 22 12 36 Thermal 52 | . 30 . . . . . 22 Explosive 9 | . . . . . . . 9 Electromagnetic 65 | . . . . . 3 46 16 Robot Hit Streak 16 | 16 3 2 . 4 2 7 10 Robot Miss Streak 7 | 1 4 2 . 2 3 3 7 Penetration Max . | . . . . . . . . Secondary Targets 3 | . 3 . . . . . . Max Gunslinging Chain 1 | . 1 . . . . . . Shots Hit Robots 150 | 26 25 2 . 6 7 30 54 Core Hits 86 | 10 11 1 . 2 4 18 40 Critical Kills . | . . . . . . . . Critical Parts Destroyed 2 | . . . . . 2 . . Critical Strikes 14 | . 6 . . . 2 2 4 Burn 6 | . 6 . . . . . . Destroy 2 | . . . . . 2 . . Blast 2 | . . . . . . . 2 Corrupt 2 | . . . . . . 2 . Sever 2 | . . . . . . . 2 Melee Attacks 46 | . . . . . . 11 35 Impact . | . . . . . . . . Slashing 46 | . . . . . . 11 35 Piercing . | . . . . . . . . Sneak Attacks 1 | . . . . . . 1 . Combat Hostiles . | . . . . . . . . Follow-up Attacks . | . . . . . . . . Damage Inflicted 4864 | 278 343 16 . 98 196 1443 2490 Guns 670 | 263 343 16 . 24 24 . . Cannons 1806 | . . . . 74 71 699 962 Explosions 1296 | . . . . . 101 431 764 Melee 1074 | . . . . . . 313 761 Ramming 18 | 15 . . . . . . 3 Kinetic 1208 | 263 140 16 . 98 95 56 540 Thermal 559 | . 203 . . . . . 356 Explosive 499 | . . . . . . . 499 Electromagnetic 1506 | . . . . . 101 1074 331 Impact . | . . . . . . . . Slashing 1074 | . . . . . . 313 761 Piercing . | . . . . . . . . Highest Corruption 9 | . . . . . . . 9 Average Corruption 7 | . . . . . . . 7 Corruption Purged . | . . . . . . . . Corruption Blocked . | . . . . . . . . Effects 11 | . . . . . . . 11 Message Errors 1 | . . . . . . . 1 Matter Fused 4 | . . . . . . . 4 Energy Discharges 3 | . . . . . . . 3 Parts Fused 1 | . . . . . . . 1 Data Loss (minor) 1 | . . . . . . . 1 Alerts 1 | . . . . . . . 1 Overload Shots . | . . . . . . . . Overflow Damage 152 | . . . . 6 . 53 93 Projectiles 6 | . . . . 6 . . . Explosions 21 | . . . . . . . 21 Melee 125 | . . . . . . 53 72 Knockbacks 6 | . . . . 1 . 1 4 Impact . | . . . . . . . . Kinetic 6 | . . . . 1 . 1 4 Secondary . | . . . . . . . . Self-Inflicted Damage 45 | 7 . . . . 8 . 30 Shots 3 | . . . . . 1 . 2 Rammed 2 | 1 . . . . . . 1 Targets Rammed 3 | 1 . . . . . . 2 Kicked . | . . . . . . . . Crushed 1 | . . . . . . . 1 Highest Temperature 463 | . 402 . . 200 92 168 463 Average Temperature 117 | . 141 . . 97 38 54 149 Received Heat Transfer 1297 | . 111 . . . 90 135 961 Effects 8 | . 1 . . . . . 7 Shutdowns 3 | . . . . . . . 3 Energy Bleed 3 | . 1 . . . . . 2 Short Circuit 1 | . . . . . . . 1 Damage (minor) 1 | . . . . . . . 1 Siege Activations . | . . . . . . . . Robots Corrupted 4 | . . . . . . 4 . Combat Hostiles 4 | . . . . . . 4 . Parts Fried 13 | . . . . . . 12 1 Impact Corruptions 1 | 1 . . . . . . . Robots Melted . | . . . . . . . . Combat Hostiles . | . . . . . . . . Parts Melted 2 | . 1 . . . . . 1 Heat Transferred 1443 | . 962 . . . . . 481 Parts Sabotaged . | . . . . . . . . Parts Stolen . | . . . . . . . . Parts Stripped . | . . . . . . . . Power Chain Reactions 1 | . . . . . . . 1 Alert | -11 -10 -10 -10 -9 -8 -7 -7 ------- Run | Yrd Mat Min Exi Min Mat Fac Gar Peak Influence 1056 | 30 149 108 . 52 260 268 1056 Initial 128 | . 19 57 . . 20 118 128 Average 352 | 11 54 82 . 45 62 181 616 Maximum Alert Level 3 | . . . . . 1 1 3 Low Security (%) 41 | 100 100 100 . 100 89 60 1 Level 1 26 | . . . . . 10 39 29 Level 2 18 | . . . . . . . 40 Level 3 13 | . . . . . . . 28 Level 4 . | . . . . . . . . Level 5 . | . . . . . . . . High Security . | . . . . . . . . Max Security . | . . . . . . . . Squads Dispatched 13 | . . . . . 3 10 . Investigation . | . . . . . . . . Extermination 2 | . . . . . . 2 . Reinforcement 8 | . . . . . 3 5 . Assault . | . . . . . . . . Garrison 3 | . . . . . . 3 . Intercept . | . . . . . . . . Searches Triggered . | . . . . . . . . Construction Impeded 2 | . . . . . . 2 . Haulers Reinforced . | . . . . . . . . Active Scanning Responses . | . . . . . . . . Cargo Convoy Interrupts . | . . . . . . . . Stealth | -11 -10 -10 -10 -9 -8 -7 -7 --------- Run | Yrd Mat Min Exi Min Mat Fac Gar Distress Signals 5 | . 1 . . . 3 1 . Communications Jammed . | . . . . . . . . Distress Signals . | . . . . . . . . Times Spotted 106 | . 9 3 . 3 36 18 37 Peak Tracking Total 18 | . 6 3 . 3 18 4 7 Tactical Retreats 11 | . . . . . 5 1 5 Traps | -11 -10 -10 -10 -9 -8 -7 -7 ------- Run | Yrd Mat Min Exi Min Mat Fac Gar Traps Triggered 14 | . . . . . . 4 10 Indirectly 4 | . . . . . . 4 . Trap Hack Attempts . | . . . . . . . . Triggered . | . . . . . . . . Disarmed . | . . . . . . . . Reprogrammed . | . . . . . . . . Reused . | . . . . . . . . Traps Extracted . | . . . . . . . . Installed . | . . . . . . . . Triggered . | . . . . . . . . Machines | -11 -10 -10 -10 -9 -8 -7 -7 ---------- Run | Yrd Mat Min Exi Min Mat Fac Gar Machines Disabled 9 | . 1 . . . 1 . 7 Max in Single Turn 1 | . 1 . . . 1 . 1 Garrison Relay 4 | . . . . . . . 4 Phase Generator 1 | . . . . . . . 1 Machines Repaired . | . . . . . . . . Machines Dismantled . | . . . . . . . . Machines Sabotaged . | . . . . . . . . Overloaded Fab Kills . | . . . . . . . . Hacking | -11 -10 -10 -10 -9 -8 -7 -7 --------- Run | Yrd Mat Min Exi Min Mat Fac Gar Machines Accessed 9 | . 1 . . . 2 4 2 Terminals 8 | . 1 . . . 2 3 2 Fabricators . | . . . . . . . . Repair Stations . | . . . . . . . . Recycling Units . | . . . . . . . . Scanalyzers . | . . . . . . . . Garrison Access 1 | . . . . . . 1 . Total Hacks 26 | . 1 . . . 10 8 7 Successful 10 | . . . . . 6 4 . Failed 16 | . 1 . . . 4 4 7 Catastrophic 8 | . 1 . . . 2 3 2 Database Lockouts . | . . . . . . . . Manual 17 | . 1 . 1 . 8 7 . Terminals 25 | . 1 . . . 10 7 7 Fabricators . | . . . . . . . . Repair Stations . | . . . . . . . . Recycling Units . | . . . . . . . . Scanalyzers . | . . . . . . . . Garrison Access 1 | . . . . . . 1 . Terminal Hacks 4 | . . . . . 4 . . Branch Access Points 1 | . . . . . 1 . . Unreport Threat 2 | . . . . . 2 . . Registered Components 1 | . . . . . 1 . . Fabricator Hacks . | . . . . . . . . Repair Station Hacks . | . . . . . . . . Recycling Unit Hacks . | . . . . . . . . Scanalyzer . | . . . . . . . . Garrison Access Hacks 1 | . . . . . . 1 . Unlock Access 1 | . . . . . . 1 . Unauthorized Hacks 5 | . . . . . 2 3 . Terminals 5 | . . . . . 2 3 . Botnet 5 | . . . . . 2 3 . Fabricators . | . . . . . . . . Repair Stations . | . . . . . . . . Recycling Units . | . . . . . . . . Scanalyzers . | . . . . . . . . Garrison Access . | . . . . . . . . Data Cores Recovered 1 | . . . . . . 1 . Used . | . . . . . . . . Hacking Detections 8 | . 1 . . . 2 3 2 Full Trace Events 1 | . . . . . . . 1 Feedback Events . | . . . . . . . . Feedback Blocked . | . . . . . . . . Robot Schematics Acquired . | . . . . . . . . Robots Built . | . . . . . . . . Authchips . | . . . . . . . . Time . | . . . . . . . . Total Robot Build Rating . | . . . . . . . . Part Schematics Acquired . | . . . . . . . . Parts Built . | . . . . . . . . Authchips . | . . . . . . . . Time . | . . . . . . . . Total Part Build Rating . | . . . . . . . . Parts Repaired . | . . . . . . . . Time . | . . . . . . . . Parts Recycled . | . . . . . . . . Recycled Matter . | . . . . . . . . Retrieved Matter . | . . . . . . . . Retrieved Components . | . . . . . . . . Parts Scanalyzed . | . . . . . . . . Part Schematics Acquired . | . . . . . . . . Parts Damaged . | . . . . . . . . Bothacking | -11 -10 -10 -10 -9 -8 -7 -7 ------------ Run | Yrd Mat Min Exi Min Mat Fac Gar Used RIF Installer . | . . . . . . . . Robots Hacked . | . . . . . . . . Non-combat . | . . . . . . . . Combat . | . . . . . . . . Robot Hacks Applied . | . . . . . . . . Relay Couplers Released 16 | . . . . . . . 16 Machine Destruction 16 | . . . . . . . 16 Fabnet Peak Effective % . | . . . . . . . . Robots Rewired . | . . . . . . . . Allies Hacked . | . . . . . . . . Hacks Repelled . | . . . . . . . . Allies | -11 -10 -10 -10 -9 -8 -7 -7 -------- Run | Yrd Mat Min Exi Min Mat Fac Gar Total Allies 4 | . . 3 . 1 . . . Largest Group 3 | . . 3 . . . . . Highest-Rated Group 40 | . . 40 . . . . . Highest-Rated Ally 16 | . . 16 . . . . . Total Orders . | . . . . . . . . Ally Attacks 10 | . . 10 . . . . . Total Damage 73 | . . 73 . . . . . Kills 2 | . . 2 . . . . . Allies Corrupted . | . . . . . . . . Allies Melted . | . . . . . . . . Intel | -11 -10 -10 -10 -9 -8 -7 -7 ------- Run | Yrd Mat Min Exi Min Mat Fac Gar Robot Analysis Total . | . . . . . . . . Derelict Logs Recovered 2 | . . 1 . 1 . . . Drone Launches . | . . . . . . . . Drone Recoveries . | . . . . . . . . Exploration | -11 -10 -10 -10 -9 -8 -7 -7 ------------- Run | Yrd Mat Min Exi Min Mat Fac Gar Turns Passed 3687 | 108 210 118 289 131 197 1076 1558 Spaces Moved 4023 | 52 134 181 468 195 261 1610 1122 Core 26 | 1 2 . . . . . 23 Treads 119 | . . . . . . . 119 Legs 79 | . . . . . . . 79 Wheels 148 | 51 97 . . . . . . Hover 1066 | . . 181 468 195 . . 222 Flight 2585 | . 35 . . . 261 1610 679 Fastest Speed 37 | 50 37 56 56 56 50 50 40 Average Speed 65 | 90 79 56 56 56 50 50 96 Slowest Speed 800 | 100 200 56 116 116 50 50 800 Overloaded Moves . | . . . . . . . . Propulsion Burnouts . | . . . . . . . . Robots Hopped 26 | . 1 . . . 5 17 3 Cave-ins Triggered . | . . . . . . . . Exploration Rate (%) 42 | 4 27 24 88 41 44 36 78 Regions Visited 7 Branch Regions 3 Pre-discovered Areas . | . . . . . . . . Known Exits Taken 2 | . . . . . 1 1 . Unknown Exits Taken 5 | 1 1 1 1 1 . . . Scrap Searched 1 | . . . . 1 . . . Spaces Dug 56 | . . . . . 6 11 39 Terrain Destroyed 276 | . . . . 2 14 11 249 Melee 18 | . . . . . . 6 12 Projectile 21 | . . . . 2 14 5 . AOE 237 | . . . . . . . 237 Terrain Rammed . | . . . . . . . . Walls Destroyed . | . . . . . . . . Machines Disabled . | . . . . . . . . Actions | -11 -10 -10 -10 -9 -8 -7 -7 --------- Run | Yrd Mat Min Exi Min Mat Fac Gar Total 4676 | 79 181 197 496 205 298 1789 1431 Wait 193 | 3 3 . 11 3 16 92 65 Move 3970 | 52 131 180 467 194 252 1576 1118 Hop 21 | . 1 . . . 3 16 1 Pick Up 33 | . 5 5 3 . 4 12 4 Fast Attach 54 | 7 4 1 4 . 2 9 27 Attach 34 | . 2 2 . 1 2 9 18 Detach 25 | . 5 . . 1 . 8 11 Swap . | . . . . . . . . Drop 45 | . . 5 11 . 2 13 14 Fire 186 | 17 30 4 . 6 17 43 69 Melee 46 | . . . . . . 11 35 Ram . | . . . . . . . . Kick . | . . . . . . . . Crush 2 | . . . . . . . 2 Escape Stasis 67 | . . . . . . . 67 Rewire . | . . . . . . . . Trap . | . . . . . . . . Miscellaneous . | . . . . . . . . Route ------- -11/Scrapyard -10/Materials -10/Mines -10/Exiles -9/Mines -8/Materials -7/Factory (discovered 3 exits: *Fac x2 / Gar) -7/Garrison (discovered 2 exits: *Sto x2) History --------- Turn | Location | Event 14 | -11/Scrapyard | Discovered new exit (range 16) 109 | -11/Scrapyard | Entered Materials 203 | -10/Materials | Discovered new exit (range 16) 263 | -10/Materials | Core integrity fell below 50% 309 | -10/Materials | Lost 3 parts (1p2n) 313 | -10/Materials | Core integrity fell below 20% 317 | -10/Materials | Build established: Mutant 319 | -10/Materials | Entered Mines 323 | -10/Mines | Met a Derelict bent on vengeance 342 | -10/Mines | Assisted by bots powering up and referring to "LRC-V3" 349 | -10/Mines | Learned Materials stockpile data 419 | -10/Mines | A weapon hastily lodged in a ceiling crevice suddenly fell to the ground 434 | -10/Mines | Deemed a non-threat by the Exiles lab entrance 434 | -10/Mines | Discovered new exit (range 5) 437 | -10/Mines | Entered Exiles 451 | -10/Exiles | Met 8R-AWN 461 | -10/Exiles | Met EX-HEX 478 | -10/Exiles | Met EX-BIN 506 | -10/Exiles | Aligned with FarCom system 507 | -10/Exiles | Given EX-Vault access code 520 | -10/Exiles | Opened EX-Vault 524 | -10/Exiles | Found Prototype Flight Unit 529 | -10/Exiles | Found Prototype Device 529 | -10/Exiles | Identified Skeleton Box 533 | -10/Exiles | Found Prototype Energy Cannon 533 | -10/Exiles | Identified Firepult 548 | -10/Exiles | Warned to stay clear of 0b10 Research branches 564 | -10/Exiles | Met EX-DEC 600 | -10/Exiles | Visited The Gauntlet 721 | -10/Exiles | Discovered new exit (range 10) 726 | -10/Exiles | Left Exiles lab with Flying Fortress v7 726 | -10/Exiles | Entered Mines 759 | -9/Mines | Learned Materials security intel 853 | -9/Mines | Received a Mining Laser from a helpful Derelict 853 | -9/Mines | Discovered new exit (range 10) 857 | -9/Mines | Entered Materials 857 | -8/Materials | Evolved 4 slots: Propulsion x2, Utility x2 859 | -8/Materials | Identified Flying Fortress v7 1015 | -8/Materials | Discovered new exit (range 16) 1020 | -8/Materials | Lost 3 parts (1p2w) 1053 | -8/Materials | Identified exit to Factory 1054 | -8/Materials | Entered Factory 1054 | -7/Factory | Evolved 2 slots: Utility x2 1540 | -7/Factory | Garrison activated, responded to threat 2026 | -7/Factory | Discovered new exit (range 12) 2033 | -7/Factory | Identified exit to Factory 2064 | -7/Factory | Discovered exit to Factory (range 14) 2127 | -7/Factory | Identified exit to Garrison 2130 | -7/Factory | Entered Garrison 2136 | -7/Garrison | Triggered checkpoint 2156 | -7/Garrison | Garrison Relay disabled 2204 | -7/Garrison | Garrison Relay disabled 2262 | -7/Garrison | Spotted B-75 Beast 2534 | -7/Garrison | Triggered checkpoint 2593 | -7/Garrison | Discovered new exit (range 10) 2597 | -7/Garrison | Identified exit to Storage 2644 | -7/Garrison | Phase Generator disabled 2676 | -7/Garrison | Triggered checkpoint 2682 | -7/Garrison | Garrison Relay disabled 2702 | -7/Garrison | Triggered checkpoint 2706 | -7/Garrison | Triggered checkpoint 2808 | -7/Garrison | Lost 3 parts (1n1u1w) 3228 | -7/Garrison | Triggered checkpoint 3366 | -7/Garrison | Build established: Scavenger-Mutant 3380 | -7/Garrison | Triggered checkpoint 3395 | -7/Garrison | Garrison Relay disabled 3405 | -7/Garrison | Discovered exit to Storage (range 8) 3465 | -7/Garrison | Core integrity fell below 50% 3505 | -7/Garrison | Lost 13 parts (1p4n7u1w) 3520 | -7/Garrison | Core integrity fell below 20% 3560 | -7/Garrison | Lost 4 parts (1p1n1u1w) 3688 | -7/Garrison | Destroyed by C-17 Slicer with Blade Saw Last Messages --------------- Acquired Gravmag System. Acquired Imp. Heat Sink. Acquired 60 matter. Triggered Fusion Bomb Trap. An explosion rips through the floor. Gravmag System destroyed. System corrupted: Matter fused (-5). [Achievement: Remodeling] C-17 Slicer knocked back. C-17 Slicer destroyed. Knocked back. Lrn. Missile Launcher destroyed. Knocked back. The unstable cave ceiling collapses. Adv. Melee Analysis Suite severed. Gravmag System severed. Acquired Gravmag System. System corrupted: Matter fused (-5). The unstable cave ceiling collapses. Magnetic Acceleration Cannon severed. Map ----- +----------------------------------------------------+ | [ = ^ #?????#### #### ## ## # %! | | #??????### #### # ### ### # | | ### ###### #??????# | | ??# #????#] #??????# | | ??# #????#][ #??????# | | | ??#^###### %*#??????# ####### ######!########## | | ??# [ #??????# #?????# #????# #????????? | | ??# ###### #??????# #?????# #???##%##???????? | | ??# #????# #??????# #######! #???# ! #???##### | | ??# #????# #??????# %% #####!]!#####!!!# | | ??# #????# ######## #######! ] ]! ! | | ??# #????# ## ## #?????# #####=!!#####!!!# | | ??# #????# ## ## #?????# #??#""!""#??##### | | ### ###### ! ####### #??#######??????? | | #???????????????? | | ##### #### #???????????????? | | ????? #??# ## ## #### #####???????????????? | | ??????#??# ## ## #??# #???????????????????? | | ?????????" "g? #???????????????????? | | ?????????" "g####???????????????????? | | ????????g" "????#???###?????????????? | | ????????g" "??? ### #####?????????? | | ?????????# ## ## #?? #?????????? | | ?????????# ##^ ^## ### # #?????????? | | ?????????# c % ????????? | | ?????????# @c / ????????? | | ?????????# ^ ### # #?????????? | | ?????????## ##""""######???? #??????????? | | ??????????# #?ggg?????????????# #####??????????? | | ??????????# #???????????????????? #?????????????? | | ??????????# #???????????????????????????????????? | | ??????????# #???????????????????????????????????? | | ??????????# #???????????????????????????????????? | | ??????????# #???????????????????????????????????? | | ########### #???????????????????????????????????? | | #???????????????????????????????????? | | #???????????????????????????????????? | | ############"#???????????????????????????????????? | | ??????????# #???????????????????????????????????? | | ??????????# #???????????????????????????????????? | | ??????????# #???????????????????????????????????? | | ??????????# #???????????????????????????????????? | | ########### #???????????????????????????????????? | | """ """"## #???????????????????????????????????? | | "" ![*"""## #???????????????????????????????????? | | "= ""## #???????????????????????????????????? | | = # # ]"## #???????????????????????????????????? | | !=# # !"## #???????????????????????????????????? | | ! # # ="## #???????????????????????????????????? | | ! # # !"## ##??????????????????????????????????? | +----------------------------------------------------+ Best States ------------- Heat Dissipation 48 Energy Generation 16 Energy Capacity 540 Matter Stores 300 Matter Capacity 300 Sight Range 16 Terrain Scan Density 10 Armor Coverage 825 Propulsion Shielding 66 Evasion (%) 70 Melee Accuracy 32 Recoil Reduction 2 Item Schematics ----------------- None Robot Schematics ------------------ None Fabricated ------------ Nothing Alien Tech Used ----------------- None Achievements -------------- Remodeling Challenges ------------ None Game ------ Seed BurstEtherialGreatsword Manual? 0 Play Time 00:51:23 Cumulative 10.8 hours Start 2024.04.04 @ 16:06:50 End 2024.04.04 @ 16:57:07 Sessions 1 Manual Loads 0 Difficulty Rogue Special Mode None Game No. 19 Rogue 19 Adventurer 0 Explorer 0 Win Type - Total 0 Types 0/0/0/0/0/0/0/0/0 Lore% 10 Gallery% 23 Achievement% 22 Wizard Run 0 Options --------- Layout 1 ASCII 0 Keyboard 1 Movement Numpad Keybinds 0 Fullscreen 1 Font 32/SmallcapsGlow Map View 50x35 Zoom Use 0% Tactical HUD 0 Map Filters NONE Filters NONE Steam 1 RUN: 6cb678fb-24c6-42c1-8e5e-f48d29652c39